[Event "FIDE WCCC U10 2018"]
[Site "Santiago de Compostela"]
[Date "2018.11.04"]
[Round "1"]
[White "Cacheiro Blanco, Diego"]
[Black "Mogirzan, Matei-Valeriu"]
[Result "0-1"]
[ECO "B81"]
[WhiteElo "1453"]
[BlackElo "1939"]
[Annotator "NA RC"]
[PlyCount "70"]
[EventDate "2018.11.04"]
[EventType "swiss"]
[EventCountry "ESP"]
[SourceTitle "playchess.com"]
[Source "ChessBase"]
[SourceQuality "1"]
[TimeControl "40/5400+30:1800+30"]

1. e4 {[%emt 0:00:00]} c5 {[%emt 0:00:00]} 2. Nf3 {[%emt 0:00:10]} d6 {[%emt 0:00:00]} 3. d4 {[%emt 0:00:46]} cxd4 {[%emt 0:00:08]} 4. Nxd4 {[%emt 0:00:26]} Nf6 {[%emt 0:00:22]} 5. Nc3 {[%emt 0:00:24]} e6 {[%emt 0:00:12]} 6. g4 {[%emt 0:01:24]} Nc6 {[%emt 0:00:43]} 7. g5 {[%emt 0:03:48]} Nd7 {[%emt 0:01:35]} 8. Be3 {[%emt 0:02:01]} a6 {[%emt 0:01:18]} 9. f4 {[%emt 0:02:03] LiveBook: 15 Games} Qc7 {[%emt 0:00:52]} 10. Qd2 {[%emt 0:02:45]} b5 {[%emt 0:02:07]} 11. O-O-O {[%emt 0:02:35]} Nc5 {[%emt 0:01:43]} 12. a3 {[%emt 0:11:38]} Bb7 {[%emt 0:03:48]} 13. Bg2 {[%emt 0:04:32]} Na5 {[%emt 0:01:47]} 14. b3 {[%emt 0:04:21]} e5 $15 {[%emt 0:01:16]} 15. Ndxb5 {[%emt 0:02:32]} axb5 {[%emt 0:00:22]} 16. Nxb5 {[%emt 0:00:36]} Ncxb3+ {[%emt 0:04:10]} 17. Kb1 {[%emt 0:04:18]} Nxd2+ {[%emt 0:00:10]} 18. Rxd2 {[%emt 0:00:31]} Qb8 {[%emt 0:00:42]} 19. Kc1 {[%emt 0:01:19]} Nc4 {[%emt 0:00:10]} 20. Rd3 {[%emt 0:00:35]} Bc6 {[%emt 0:00:23]} 21. a4 {[%emt 0:00:57]} Qxb5 {[%emt 0:00:42]} 22. Rb3 {[%emt 0:00:41]} Qxa4 {[%emt 0:00:07]} 23. Kd1 {[%emt 0:00:31]} Nxe3+ {[%emt 0:00:27]} 24. Rxe3 {[%emt 0:00:20]} Qa1+ {[%emt 0:00:08]} 25. Kd2 {[%emt 0:00:16]} Qd4+ {[%emt 0:00:07]} 26. Rd3 {[%emt 0:00:30]} Qf2+ {[%emt 0:00:08]} 27. Kc3 {[%emt 0:00:26]} Ra3+ {[%emt 0:00:12]} 28. Kb2 {[%emt 0:00:24]} Rxd3 {[%emt 0:00:07]} 29. Bf1 {[%emt 0:00:33]} Rd2 {[%emt 0:00:04]} 30. Bd3 {[%emt 0:00:32]} Rxd3 {[%emt 0:00:07]} 31. fxe5 {[%emt 0:00:24]} dxe5 {[%emt 0:00:09]} 32. Rc1 {[%emt 0:00:24]} Ba3+ {[%emt 0:00:07]} 33. Kb1 {[%emt 0:00:18]} Rb3+ {[%emt 0:00:05]} 34. Ka1 {[%emt 0:00:28]} Bxc1 {[%emt 0:00:06]} 35. g6 {[%emt 0:00:27]} Qa7# {[%emt 0:00:14]} 0-1

[Event "FIDE WCCC U10 2018"]
[Site "Santiago de Compostela"]
[Date "2018.11.04"]
[Round "1"]
[White "Antuna Pavon, Lucas"]
[Black "Atanasov, Anthony"]
[Result "0-1"]
[ECO "B90"]
[WhiteElo "1449"]
[BlackElo "1916"]
[Annotator "NA RC"]
[PlyCount "72"]
[EventDate "2018.11.04"]
[EventType "swiss"]
[EventCountry "ESP"]
[SourceTitle "playchess.com"]
[Source "ChessBase"]
[SourceQuality "1"]
[TimeControl "40/5400+30:1800+30"]

{[%evp 19,72,-9,32767,-18,32767,32767,32767,32767,32767,32767,-31,-39,32767,32767,32767,32767,32767,32767,17,0,14,8,12,25,47,40,98,32767,121,75,96,32767,127,0,0,32767,0,0,0,0,0,-245,-203,-203,-162,-714,-840,-743,-808,-882,-866,-807,-944,-1041,-922]} 1. e4 {[%emt 0:00:00]} c5 {[%emt 0:00:00]} 2. Nf3 {[%emt 0:00:00]} d6 {[%emt 0:00:00]} 3. d4 {[%emt 0:00:00]} cxd4 {[%emt 0:00:00]} 4. Nxd4 {[%emt 0:00:14]} Nf6 {[%emt 0:00:00]} 5. Nc3 {[%emt 0:00:17]} a6 {[%emt 0:00:02]} 6. Be3 e6 {[%emt 0:00:09]} 7. f4 {[%emt 0:00:38]} b5 {[%emt 0:03:23]} 8. Qf3 {[%emt 0:02:03]} Bb7 {[%emt 0:00:14]} 9. Bd3 {[%emt 0:00:35]} Nbd7 {[%emt 0:01:00]} 10. a3 {[%emt 0:13:18] B82: Sicilian Scheveningen: 6 f4} Be7 {[%emt 0:08:14]} (10... h5 11. O-O-O Rc8 12. Rhe1 Rxc3 13. bxc3 Nc5 14. Nb3 Na4 15. Nc5 dxc5 16. Bxb5+ axb5 17. Rxd8+ Kxd8 {0-1 (38) Sek,K (2476)-Antipov,M (2616) Yaroslavl 2018}) 11. g4 {[%emt 0:22:39]} Nb6 {[%emt 0:06:05]} 12. g5 {[%emt 0:11:20]} Nfd7 {[%emt 0:00:54]} 13. a4 $146 {[%emt 0:05:47]} ({Predecessor:} 13. Qh3 d5 14. O-O-O Nf8 15. g6 Nxg6 16. exd5 Nxd5 17. Bxg6 Nxe3 18. Bxf7+ Kxf7 19. Qxe6+ {1-0 (26) Vavra,P (2299)-Navratil,J (1844) Liberec 2008}) 13... b4 {[%emt 0:00:56]} 14. Nce2 {[%emt 0:01:37]} Rc8 {[%emt 0:25:55]} 15. Ng3 {[%emt 0:09:52]} Nc5 {[%emt 0:15:42]} 16. a5 {[%emt 0:02:45]} Nbd7 {[%emt 0:02:21]} 17. Bd2 {[%emt 0:01:35]} d5 {[%emt 0:01:23]} 18. e5 {[%emt 0:06:01]} Qc7 {[%emt 0:05:52]} 19. O-O {[%emt 0:06:52]} Nxd3 {[%emt 0:03:10]} 20. cxd3 {[%emt 0:00:22]} g6 {[%emt 0:10:23]} 21. Rfc1 {[%emt 0:01:19]} Bc5 {[%emt 0:01:08]} 22. Nge2 {[%emt 0:01:39]} Qd8 {[%emt 0:02:18]} (22... Qb8 $14) 23. Kf1 {[%emt 0:02:08]} h6 {[%emt 0:01:22]} (23... O-O $14) 24. Qh3 {[%emt 0:01:32]} Qe7 {[%emt 0:02:55]} 25. gxh6 {[%emt 0:01:23]} Qf8 {[%emt 0:03:16] [#]} 26. Nb3 {[%emt 0:01:13]} (26. f5 $1 $16) 26... Rxh6 {[%emt 0:00:19]} 27. Qg3 {[%emt 0:00:15]} Qh8 $1 {[%emt 0:00:45]} 28. Nxc5 {[%emt 0:00:53]} Nxc5 {[%emt 0:01:13]} 29. Bxb4 {[%emt 0:00:23]} Rh3 {[%emt 0:01:13]} 30. Bxc5 $2 {[%emt 0:01:23]} (30. Qg5 $11 {and White has nothing to worry.} Rh5 31. Qg3) 30... Rxg3 {[%emt 0:00:19]} 31. hxg3 {[%emt 0:00:08]} Qh3+ {[%emt 0:01:08]} 32. Ke1 $2 {[%emt 0:00:13] [#]} (32. Kf2 $17) 32... Rxc5 $1 {[%emt 0:00:10]} 33. Rxc5 {[%emt 0:00:49]} Qh1+ {[%emt 0:00:07]} 34. Kd2 {[%emt 0:00:35]} Qxa1 {[%emt 0:00:09]} 35. b4 {[%emt 0:00:20]} Qb2+ {[%emt 0:00:30]} 36. Rc2 $19 {[%emt 0:00:27]} Qxb4+ 0-1

[Event "FIDE WCCC U10 2018"]
[Site "Santiago de Compostela"]
[Date "2018.11.04"]
[Round "1"]
[White "Sainov, Sanzhar"]
[Black "Hagner, Bennet"]
[Result "0-1"]
[ECO "B15"]
[WhiteElo "1435"]
[BlackElo "1912"]
[Annotator "NA"]
[PlyCount "56"]
[EventDate "2018.11.04"]
[EventType "swiss"]
[EventCountry "ESP"]
[SourceTitle "playchess.com"]
[Source "ChessBase"]
[SourceQuality "1"]
[TimeControl "40/5400+30:1800+30"]

{[%evp 9,55,45,32767,34,22,32767,32767,32767,32767,32767,32767,32767,32767,0,32767,32767,32767,32767,24,32767,32767,32767,32767,32767,32767,32767,281,32767,32767,32767,32767,32767,6,0,6,-21,0,-18,-10,-20,-13,-30,-22,-65,-61,-64,32767,-61]} 1. e4 {[%emt 0:00:00]} c6 {[%emt 0:00:00]} 2. d4 {[%emt 0:00:04]} d5 {[%emt 0:00:00]} 3. Nc3 {[%emt 0:00:49]} dxe4 {[%emt 0:00:00]} 4. Nxe4 {[%emt 0:00:13]} Nf6 {[%emt 0:00:02]} 5. Nxf6+ {[%emt 0:00:41]} exf6 {[%emt 0:00:07]} 6. c3 {[%emt 0:00:56] LiveBook: 797 Games} Bf5 {[%emt 0:00:11]} 7. Bd3 {[%emt 0:00:54] B15: Caro-Kann: 3 Nc3: 3...g6 and 3...dxe4 4 Nxe4 Nf6 5 Nxf6+ exf6} Bxd3 {[%emt 0:00:09]} 8. Qxd3 {[%emt 0:00:10]} Bd6 {[%emt 0:00:09]} 9. Ne2 {[%emt 0:00:43]} (9. Qe3+ Qe7 10. Nf3 Nd7 11. Qxe7+ Kxe7 12. Be3 Nb6 13. O-O-O Kd7 14. Rhe1 Nd5 {½-½ (50) Wei,Y (2707)-Rapport,R (2717) Yancheng 2016}) 9... O-O {[%emt 0:00:16]} 10. Be3 {[%emt 0:00:09]} Na6 {[%emt 0:01:49]} 11. O-O $146 {[%emt 0:01:20]} ({Predecessor:} 11. O-O-O Qa5 12. Kb1 Rfe8 13. Ng3 Nc7 14. Ne4 Bf8 {1-0 (55) Hector,J (2488)-Korley,K (2377) Copenhagen 2016}) 11... Nc7 {[%emt 0:01:01]} 12. Rac1 {[%emt 0:00:19]} Ne6 {[%emt 0:05:18]} 13. c4 {[%emt 0:01:10]} Rc8 {[%emt 0:05:38]} 14. Nc3 {[%emt 0:08:24]} Re8 {[%emt 0:06:19]} 15. Rfe1 {[%emt 0:05:11]} f5 {[%emt 0:17:15]} 16. Qxf5 {[%emt 0:05:19]} Qh4 {[%emt 0:01:15]} 17. g3 {[%emt 0:09:18]} Nxd4 {[%emt 0:12:00]} (17... Qe7 {is a better defense.} 18. c5 Bc7) 18. Bxd4 {[%emt 0:00:13]} Qxd4 {[%emt 0:00:34]} 19. Rxe8+ {[%emt 0:00:13]} Rxe8 {[%emt 0:00:11]} 20. Rd1 {[%emt 0:00:12]} Qe5 {[%emt 0:04:41]} 21. Qd7 {[%emt 0:00:56]} Bc7 {[%emt 0:00:50]} 22. c5 {[%emt 0:08:46]} f5 {[%emt 0:05:16]} 23. Qd4 {[%emt 0:02:06]} Qxd4 {[%emt 0:02:18]} 24. Rxd4 {[%emt 0:00:13]} Kf7 {[%emt 0:00:23]} 25. Kg2 {[%emt 0:01:25]} Ke6 {[%emt 0:03:36]} 26. Rd2 {[%emt 0:00:58]} Rd8 {[%emt 0:02:10]} 27. Re2+ {[%emt 0:01:06]} Kf6 {[%emt 0:00:24]} 28. h3 $15 {[%emt 0:03:58]} Be5 {[%emt 0:01:12]} 0-1

[Event "FIDE WCCC U10 2018"]
[Site "Santiago de Compostela"]
[Date "2018.11.08"]
[Round "4"]
[White "Royal, Shreyas"]
[Black "Cereijo Suarez, Alejandro"]
[Result "1-0"]
[ECO "A80"]
[WhiteElo "2048"]
[BlackElo "1575"]
[Annotator "NA RC"]
[PlyCount "139"]
[EventDate "2018.11.04"]
[EventType "swiss"]
[EventCountry "ESP"]
[SourceTitle "playchess.com"]
[Source "ChessBase"]
[SourceQuality "1"]
[TimeControl "40/5400+30:1800+30"]

{[%evp 14,133,-16,-41,-35,-62,-24,-45,-28,32767,-12,-41,-15,32767,32767,32767,32767,-141,-13,-25,-10,-105,32767,-110,-77,32767,30,43,71,68,69,32767,32767,32767,32767,78,32767,32767,74,47,88,55,114,119,176,127,123,32767,32767,32767,81,74,32767,151,32767,108,32767,112,142,32767,32767,32767,32767,45,32767,69,32767,32767,59,11,32767,8,45,8,53,64,86,69,55,72,44,56,102,61,145,32767,287,32767,213,32767,306,409,424,293,179,470,384,111,444,192,195,81,810,93,4134,192,216,439,3118,6277,29949,32767,32767,32767,32767,32767,32767,32767,12830,29969,29977,29978]} 1. d4 {[%emt 0:00:00]} f5 {[%emt 0:00:00]} 2. Bg5 {[%emt 0:00:44]} g6 {[%emt 0:00:00]} 3. Nc3 {[%emt 0:00:33]} Bg7 {[%emt 0:00:00]} 4. e4 {[%emt 0:00:29]} fxe4 {[%emt 0:00:02]} 5. Nxe4 {[%emt 0:00:07]} d5 {[%emt 0:00:08]} 6. Ng3 {[%emt 0:00:35]} c5 {[%emt 0:02:23] A80: Dutch Defence: Unusual White second moves} 7. Bb5+ {[%emt 0:03:16]} Nc6 {[%emt 0:06:53]} 8. Bxc6+ {[%emt 0:01:25]} bxc6 {[%emt 0:00:08]} 9. N1e2 {[%emt 0:04:05]} cxd4 {[%emt 0:04:20]} 10. Nxd4 {[%emt 0:01:11]} c5 {[%emt 0:05:40]} 11. Nde2 $146 {[%emt 0:01:14]} ({Predecessor:} 11. Nb3 Nh6 12. Qd2 Nf7 13. O-O-O h6 14. Bxe7 Kxe7 {0-1 (27) De Santis,A (2356)-Galyas,M (2440) Budapest 1999}) 11... Bxb2 {[%emt 0:04:29]} (11... Nh6 $17 12. c3 O-O) 12. Rb1 {[%emt 0:00:16]} Bf6 {[%emt 0:00:14]} 13. Bxf6 {[%emt 0:02:53]} Nxf6 {[%emt 0:00:27]} 14. O-O {[%emt 0:00:20]} O-O {[%emt 0:01:30]} 15. Rb5 {[%emt 0:00:31]} (15. c4 $142) 15... Ne4 {[%emt 0:15:39]} ({Better is} 15... Ba6 $17 16. Rxc5 Qb6) 16. Nxe4 {[%emt 0:05:48]} dxe4 {[%emt 0:00:40]} 17. Qe1 {[%emt 0:00:06]} ({White should play} 17. Rxc5 $15 Ba6 18. c4) 17... Rf5 {[%emt 0:10:23]} 18. Rb3 {[%emt 0:04:53]} (18. Ra5 $11) 18... Ba6 {[%emt 0:11:20]} 19. Re3 {[%emt 0:02:26]} Rh5 {[%emt 0:06:51]} (19... Qd5 $17 20. Qc1 Raf8) 20. Rxe4 {[%emt 0:04:05]} Bb7 {[%emt 0:02:03] [#]} 21. Re3 $1 {[%emt 0:04:16]} Ba6 {[%emt 0:03:24]} 22. Ng3 {[%emt 0:12:37]} Rd5 {[%emt 0:01:13]} 23. Rxe7 {[%emt 0:03:11]} Kf8 {[%emt 0:09:20]} 24. Qe6 {[%emt 0:04:46]} (24. Rxh7 $18 {is the precise move to win.} Kg8 25. Rh6 (25. Re7 Kf8 $18)) 24... Qxe7 {[%emt 0:00:45]} 25. Qxd5 {[%emt 0:00:06]} Rd8 {[%emt 0:00:11]} 26. Qf3+ {[%emt 0:00:58]} Qf7 {[%emt 0:01:05]} 27. Rd1 {[%emt 0:05:43]} Rxd1+ {[%emt 0:02:07]} (27... Qxf3 $14 28. Rxd8+ Ke7 29. gxf3 Kxd8) 28. Qxd1 {[%emt 0:00:06]} Kg7 {[%emt 0:05:50]} (28... Bc4 $16) 29. Qa1+ {[%emt 0:05:25]} Qf6 {[%emt 0:02:26]} 30. Qxf6+ {[%emt 0:01:25]} Kxf6 {[%emt 0:00:05]} 31. Ne4+ {[%emt 0:00:33]} Ke5 {[%emt 0:00:13]} 32. Nxc5 {[%emt 0:00:17]} Bc4 {[%emt 0:00:20] [#]} 33. Nb3 $1 {[%emt 0:00:11]} Kd5 {[%emt 0:02:43]} 34. f4 {[%emt 0:03:51]} (34. f3 $18) 34... Be2 {[%emt 0:01:31]} 35. Kf2 {[%emt 0:04:46]} Bd1 {[%emt 0:00:15]} 36. Ke3 {[%emt 0:02:59]} Bxc2 {[%emt 0:00:52]} 37. Nd2 {[%emt 0:00:07]} Bd1 {[%emt 0:01:46]} 38. h3 {[%emt 0:02:13]} (38. Ne4 $16 Kc4 39. Nf6) 38... h5 {[%emt 0:00:33]} 39. Kd3 {[%emt 0:00:13]} Ba4 {[%emt 0:00:12]} 40. g4 {[%emt 0:00:00]} hxg4 {[%emt 0:00:00]} 41. hxg4 {[%emt 0:07:09]} Bd7 {[%emt 0:00:53]} 42. Ne4 {[%emt 0:03:02]} Bc8 {[%emt 0:07:08]} 43. Nf6+ {[%emt 0:03:38]} Ke6 {[%emt 0:01:44]} 44. g5 {[%emt 0:01:08]} Kf5 {[%emt 0:01:15]} 45. Ke3 {[%emt 0:00:30]} Be6 {[%emt 0:05:16]} 46. a3 {[%emt 0:00:35]} Ba2 {[%emt 0:01:22]} 47. Ne8 {[%emt 0:01:27]} Ke6 {[%emt 0:01:27]} ({Black should try} 47... Bb1 $14) 48. Nc7+ {[%emt 0:00:56]} Kf5 {[%emt 0:01:56]} (48... Kd7 $1 $14 49. Nb5 a6) 49. Nb5 {[%emt 0:00:53]} a5 {[%emt 0:01:35]} 50. Nd4+ {[%emt 0:00:18]} Kg4 {[%emt 0:01:30]} 51. Ke4 {[%emt 0:00:17]} Bb1+ {[%emt 0:00:25] [#]} 52. Ke5 $1 {[%emt 0:00:08]} Bd3 {[%emt 0:00:35] [#]} 53. Nc6 $1 {[%emt 0:02:28]} a4 {[%emt 0:00:31]} 54. Ne7 {[%emt 0:00:10]} Bc2 {[%emt 0:00:40] [#]} 55. Nd5 {[%emt 0:01:52]} (55. Ng8 $1 $18) 55... Bb1 $2 {[%emt 0:01:35]} 56. Nc3 {[%emt 0:07:39]} (56. Kf6 $142) 56... Bc2 {[%emt 0:00:09]} 57. Ne4 {[%emt 0:00:09]} Bb1 $2 {[%emt 0:02:11]} (57... Bb3 $16 58. Nf6+ Kh4) 58. Nd6 {[%emt 0:00:25]} (58. Nf6+ $18 Kf3 59. Nd5) 58... Bd3 $2 {[%emt 0:01:23]} (58... Ba2 $14 59. Nc8 Bb1) 59. Nf7 $2 {[%emt 0:00:32]} (59. f5 gxf5 60. g6) 59... Bb1 {[%emt 0:00:41]} 60. Nh6+ {[%emt 0:00:55]} Kh5 $2 {[%emt 0:00:12] [#]} (60... Kg3 $16 61. f5 gxf5) 61. Kf6 $1 {[%emt 0:00:37]} Bc2 {[%emt 0:01:08]} 62. f5 {[%emt 0:00:20]} Bb1 {[%emt 0:00:41]} 63. fxg6 {[%emt 0:00:18]} Bxg6 {[%emt 0:00:26]} 64. Nf5 {[%emt 0:00:34]} Bh7 {[%emt 0:00:59]} 65. Ne7 {[%emt 0:00:04]} Bc2 {[%emt 0:01:57]} 66. g6 {[%emt 0:00:17]} Bb3 {[%emt 0:01:17]} 67. g7 {[%emt 0:00:07]} Kg4 {[%emt 0:00:32]} 68. Ke5 {[%emt 0:00:04]} Kf3 {[%emt 0:00:50]} 69. Kd4 {[%emt 0:00:06]} Kf4 {[%emt 0:00:25]} 70. Nd5+ {[%emt 0:00:22]} 1-0

[Event "FIDE WCCC U10 2018"]
[Site "Santiago de Compostela"]
[Date "2018.11.08"]
[Round "4"]
[White "Zhong, Kevin"]
[Black "Jin Yueheng"]
[Result "0-1"]
[ECO "B14"]
[WhiteElo "2038"]
[BlackElo "1914"]
[Annotator "NA RC"]
[PlyCount "131"]
[EventDate "2018.11.04"]
[EventType "swiss"]
[EventCountry "ESP"]
[SourceTitle "playchess.com"]
[Source "ChessBase"]
[SourceQuality "1"]
[TimeControl "40/5400+30:1800+30"]

{[%evp 8,131,20,0,24,21,15,32767,32767,32767,32767,32767,32767,32767,32767,32767,32767,32767,4,32767,32767,0,29,10,33,11,54,3,65,6,21,-24,-8,-8,-14,-18,-21,-54,-23,-25,-27,-17,11,0,32767,0,0,-4,0,32767,32767,0,32767,0,0,32767,0,0,0,-18,0,-96,-104,-128,32767,32767,32767,-239,32767,32767,-77,-164,-106,32767,32767,32767,-99,-99,-93,-102,-101,-98,-91,-219,-84,-112,32767,-110,-106,-107,-114,-106,-89,-160,-154,32767,0,-110,0,32767,-78,-105,-108,-102,-91,-137,-89,32767,-107,-105,-107,-110,-111,-208,-200,-203,-90,-270,-305,-437,-359,-326,-278,-639,-692,-577]} 1. e4 {[%emt 0:00:00]} c6 {[%emt 0:00:00]} 2. d4 {[%emt 0:00:00]} d5 {[%emt 0:00:00]} 3. exd5 {[%emt 0:00:01]} cxd5 {[%emt 0:00:00]} 4. c4 {[%emt 0:00:08]} Nf6 {[%emt 0:00:00]} 5. Nc3 {[%emt 0:00:06]} e6 {[%emt 0:00:00]} 6. Nf3 {[%emt 0:00:05]} Be7 {[%emt 0:00:00]} 7. cxd5 {[%emt 0:00:09]} Nxd5 {[%emt 0:00:03]} 8. Bd3 {[%emt 0:00:12]} Nc6 {[%emt 0:00:38]} 9. O-O {[%emt 0:00:16]} O-O {[%emt 0:00:11]} 10. Re1 {[%emt 0:00:22]} Nf6 {[%emt 0:00:08]} 11. a3 {[%emt 0:00:13]} b6 {[%emt 0:00:13]} 12. Bg5 {[%emt 0:00:11]} Bb7 {[%emt 0:02:29]} 13. Bc2 {[%emt 0:00:14]} Rc8 {[%emt 0:03:47]} 14. Qd3 {[%emt 0:00:38]} g6 {[%emt 0:00:05]} 15. Rad1 {[%emt 0:00:30]} Re8 {[%emt 0:03:48] LiveBook: 23 Games D42: Damengambit (Verbesserte Tarrasch-Verteidigung)} 16. Ba4 {[%emt 0:13:08]} a6 {[%emt 0:02:47] [#]} (16... Nd5 $5 {[%cal Re7g5]}) 17. Ne5 $146 {[%emt 0:09:24]} ({Vorgänger:} 17. b4 Nd5 18. Nxd5 Qxd5 19. Bb3 Qd8 20. Qe3 Bxg5 21. Nxg5 Qf6 {1-0 (30) Korneev,O (2585)-Bautista Sanchez,J (2225) Solsones 2004}) 17... b5 {[%emt 0:02:15]} (17... Nd5 $5 {[%cal Re7g5]} 18. Bxc6 Bxc6 19. Nxc6 Rxc6 20. Nxd5 Qxd5 21. Bxe7 Rxe7 $11) 18. Bb3 {[%emt 0:07:15]} Nd5 {[%emt 0:16:25]} 19. Bxd5 {[%emt 0:30:11]} (19. Nxf7 $5 Kxf7 20. Qh3 Bxg5 21. Qxh7+ Kf8 22. Nxd5 $11) 19... Bxg5 {[%emt 0:00:17]} 20. Nxc6 {[%emt 0:05:44]} Bxc6 {[%emt 0:01:47]} 21. Bxc6 {[%emt 0:00:08]} Rxc6 {[%emt 0:00:05]} 22. Qe4 {[%emt 0:03:21]} Rc4 {[%emt 0:04:11]} 23. Qb7 {[%emt 0:05:59]} Qc8 {[%emt 0:02:38]} 24. Qf3 {[%emt 0:03:18]} Rc7 {[%emt 0:04:28]} 25. d5 {[%emt 0:02:04]} exd5 {[%emt 0:00:09]} 26. Rxe8+ {[%emt 0:05:02]} Qxe8 {[%emt 0:00:16]} 27. Nxd5 {[%emt 0:00:51]} Rd7 {[%emt 0:00:24]} 28. g3 {[%emt 0:00:24]} Rd6 {[%emt 0:05:01]} 29. h4 {[%emt 0:01:02]} Bd8 {[%emt 0:00:39]} 30. Kg2 {[%emt 0:07:25]} Qd7 {[%emt 0:02:21]} 31. h5 {[%emt 0:04:58]} Kf8 {[%emt 0:01:28]} 32. h6 {[%emt 0:00:55]} Qc6 {[%emt 0:00:51]} 33. Qe4 {[%emt 0:00:34]} Bg5 {[%emt 0:08:26]} (33... f5 $5 {[%cal Rf5e4]} 34. Qf3 Bf6 $15) 34. b4 {[%emt 0:01:27]} (34. Kh2 $11 {keeps the balance.} Qc5 35. Nc7) 34... Bxh6 {[%emt 0:02:11]} 35. Kh2 {[%emt 0:00:01]} Bg5 {[%emt 0:14:17]} 36. Qe5 {[%emt 0:00:15]} Bf6 {[%emt 0:00:09]} 37. Nxf6 {[%emt 0:00:46]} (37. Qf4 $17) 37... Rxf6 {[%emt 0:00:30]} 38. Rd2 {[%emt 0:00:45]} h5 {[%emt 0:01:53]} 39. Re2 {[%emt 0:00:26]} (39. Rd8+ $17 {keeps fighting.} Kg7 40. f4) 39... Kg7 {[%emt 0:00:11]} 40. Rd2 {[%emt 0:00:00]} Qe6 {[%emt 0:00:00]} 41. Qd4 {[%emt 0:01:03]} Qf5 {[%emt 0:00:57]} 42. Kg1 {[%emt 0:07:57]} Kh7 {[%emt 0:03:10]} 43. Re2 $1 {[%emt 0:02:49]} Rc6 {[%emt 0:01:19]} ({Black should play} 43... Re6 $17 44. Re3 Rxe3 45. Qxe3 g5) 44. Kg2 {[%emt 0:00:54]} Qf6 {[%emt 0:00:41]} 45. Qd2 {[%emt 0:03:24]} (45. Qxf6 $17 {keeps fighting.} Rxf6 46. f4) 45... Qd6 {[%emt 0:03:14]} (45... Rc3 $19 {and Black stays clearly on top.} 46. Qd5 Rxa3) 46. Qb2 {[%emt 0:02:40]} Qd5+ {[%emt 0:00:41]} 47. Kh2 {[%emt 0:00:55]} Qd7 {[%emt 0:03:22]} 48. Rd2 {[%emt 0:00:25]} Qe7 {[%emt 0:00:16]} 49. Re2 {[%emt 0:00:09]} Qf6 {[%emt 0:00:05]} 50. Qd2 {[%emt 0:01:42]} (50. Qxf6 $142 Rxf6 51. f4) 50... Qf5 {[%emt 0:02:28]} 51. Qd4 {[%emt 0:00:19]} Rf6 $2 {[%emt 0:01:30]} ({Black should play} 51... Rc4 $19 52. Qb2 h4) 52. Kg1 {[%emt 0:00:59]} Kg7 {[%emt 0:03:27]} 53. Re1 {[%emt 0:02:13]} Qf3 {[%emt 0:00:16]} 54. Qb2 {[%emt 0:00:25]} Qc6 {[%emt 0:01:31]} 55. Rc1 {[%emt 0:00:31]} Qe6 {[%emt 0:00:23]} 56. Rd1 {[%emt 0:00:27]} Qe7 {[%emt 0:01:50]} 57. Rd2 {[%emt 0:00:21]} Kh7 {[%emt 0:01:42]} 58. Re2 {[%emt 0:00:46]} Qd6 {[%emt 0:01:00]} 59. Rd2 {[%emt 0:00:31]} Qb6 {[%emt 0:00:18]} 60. Kh2 {[%emt 0:02:03]} (60. Qb3 $17) 60... Rf3 {[%emt 0:00:45]} 61. Re2 {[%emt 0:00:50]} Qf6 {[%emt 0:00:15]} (61... Qc7 $19 {and Black stays clearly on top.} 62. Re3 Rxe3 63. fxe3 h4) 62. Qa2 $2 {[%emt 0:01:01]} h4 {[%emt 0:00:33]} 63. Kg2 {[%emt 0:02:36]} hxg3 {[%emt 0:00:11]} 64. fxg3 {[%emt 0:00:11]} Kg7 {[%emt 0:00:26]} 65. a4 $2 {[%emt 0:02:13]} (65. Qd5 Rxa3 66. Rc2) 65... Qc3 {[%emt 0:00:26]} 66. Qb2 $19 {[%emt 0:01:01]} 0-1